bitfinex/quotes_ETHUSD_20230102
["timestamp","ask_amount","ask_price","bid_price","bid_amount"]
[1672630645831,3.75480029,1198.8,1198.7,11.11735177]
[1672630648204,3.75480029,1198.8,1198.7,14.92390825]
[1672630648461,3.75480029,1198.8,1198.7,19.45972177]
[1672630648673,3.75480029,1198.8,1198.7,23.26627825]
[1672630653163,3.75480029,1198.8,1198.7,21.17927825]
[1672630660532,3.75480029,1198.8,1198.7,21.17602277]
[1672630661108,3.75480029,1198.8,1198.7,29.51839277]
[1672630661321,3.75480029,1198.8,1198.7,21.17602277]
[1672630661482,3.75480029,1198.8,1198.7,17.36946629]
[1672630662341,3.75480029,1198.8,1198.7,21.17602277]
[1672630662530,3.75480029,1198.8,1198.7,29.51839277]
[1672630664058,3.75480029,1198.8,1198.7,31.61539277]
[1672630664213,4.49400909,1198.9,1198.7,31.61539277]
[1672630664430,4.49400909,1198.9,1198.8,7.14886114]
[1672630664431,4.42800909,1198.9,1198.8,7.14886114]
[1672630664632,4.42988624,1198.9,1198.8,10.21486114]
[1672630664952,0.6732088,1198.9,1198.8,13.84812859]
[1672630665630,0.6732088,1198.9,1198.8,15.91176962]
[1672630665787,4.42975724,1198.9,1198.8,15.91176962]
[1672630676080,0.6732088,1198.9,1198.8,15.91176962]
[1672630677952,4.43051489,1198.9,1198.8,15.91176962]
[1672630681064,4.43051489,1198.9,1198.8,15.907885]
[1672630681554,3.80408221,1198.9,1198.8,49.15245148]
[1672630681888,4.43051489,1198.9,1198.8,49.15245148]
[1672630683409,4.43051489,1198.9,1198.8,40.81078148]
[1672630685577,0.6732088,1198.9,1198.8,40.81078148]
[1672630686944,3.80265905,1198.9,1198.8,40.81078148]
[1672630687327,0.6732088,1198.9,1198.8,40.81078148]
[1672630687532,3.80266763,1198.9,1198.8,40.81078148]
[1672630694722,3.80266763,1198.9,1198.8,32.46911148]
[1672630702584,3.80266763,1198.9,1198.8,40.81078148]
[1672630702832,3.80266763,1198.9,1198.8,40.80693233]
[1672630703215,3.80266763,1198.9,1198.8,40.75693233]
[1672630704720,6.30555072,1198.9,1198.8,49.09860233]
[1672630704940,6.30955072,1198.9,1198.8,49.09860233]
[1672630705755,3.80666763,1198.9,1198.8,49.09860233]
[1672630705985,3.80266763,1198.9,1198.8,49.09860233]
[1672630706223,6.30542358,1198.9,1198.8,49.09860233]
[1672630706433,6.30944258,1198.9,1198.8,49.09860233]
[1672630706645,6.30944258,1198.9,1198.8,57.87860233]
[1672630707446,5.05687984,1198.9,1198.8,57.87860233]
[1672630707996,6.30944258,1198.9,1198.8,57.87860233]
[1672630708206,3.17998375,1198.9,1198.8,57.87860233]
[1672630708423,6.30544258,1198.9,1198.8,57.87860233]
[1672630708626,6.30944258,1198.9,1198.8,57.87860233]
[1672630708837,3.17998375,1198.9,1198.8,57.87860233]
[1672630709048,6.30544258,1198.9,1198.8,57.87860233]
[1672630709286,3.17998375,1198.9,1198.8,57.87860233]
[1672630709446,3.17598375,1198.9,1198.8,57.87860233]
[1672630710717,6.30544258,1198.9,1198.8,57.87860233]
[1672630710919,6.30944258,1198.9,1198.8,57.87860233]
[1672630712131,3.17998375,1198.9,1198.8,57.87860233]
[1672630712343,6.30544258,1198.9,1198.8,57.87860233]
[1672630712553,6.30944258,1198.9,1198.8,57.87860233]
[1672630713605,3.17998375,1198.9,1198.8,57.87860233]
[1672630713816,3.17598375,1198.9,1198.8,57.87860233]
[1672630713968,6.30544258,1198.9,1198.8,57.87860233]
[1672630714178,6.30944258,1198.9,1198.8,57.87860233]
[1672630715594,3.17998375,1198.9,1198.8,57.87860233]
[1672630715814,3.17598375,1198.9,1198.8,57.87860233]
[1672630716116,6.30544258,1198.9,1198.8,57.87860233]
[1672630716337,6.30944258,1198.9,1198.8,57.87860233]
[1672630718082,6.30944258,1198.9,1198.8,55.78160233]
[1672630724596,6.30944258,1198.9,1198.8,55.77875556]
[1672630729572,6.30944258,1198.9,1198.8,55.52637174]
[1672630729890,6.30944258,1198.9,1198.8,55.77875556]
[1672630735034,4.43451489,1198.9,1198.8,16.08118908]
[1672630735185,4.43051489,1198.9,1198.8,9.70030545]
[1672630737400,4.43051489,1198.9,1198.8,9.47030545]
[1672630740283,4.43051489,1198.9,1198.8,17.81197545]
[1672630742331,3.80198112,1198.9,1198.8,26.15364545]
[1672630742996,3.80198112,1198.9,1198.8,29.82925942]
[1672630744852,6.30483098,1198.9,1198.8,41.9774859]
[1672630745103,6.30883098,1198.9,1198.8,41.9774859]
[1672630745367,6.30883098,1198.9,1198.8,50.7574859]
[1672630745575,6.30883098,1198.9,1198.8,53.0654859]
[1672630746237,6.30883098,1198.9,1198.8,53.06217655]
[1672630746930,5.05707462,1198.9,1198.8,53.06217655]
[1672630747138,3.18005866,1198.9,1198.8,53.06217655]
[1672630747371,2.5501878,1198.9,1198.8,60.99534051]
[1672630748246,5.05303766,1198.9,1198.8,60.99534051]
[1672630748448,2.5541878,1198.9,1198.8,60.99534051]
[1672630748766,2.5501878,1198.9,1198.8,60.99534051]
[1672630749509,2.5501878,1198.9,1198.8,60.16217655]
[1672630750117,0.6732088,1198.9,1198.8,60.16217655]
[1672630750501,4.31103766,1199.0,1198.9,36.80291]
[1672630750867,4.24503766,1199.0,1198.9,57.54161612]
[1672630751695,4.24503766,1199.0,1198.9,57.55143771]
[1672630751901,2.36805866,1199.0,1198.9,57.55143771]
[1672630752249,3.12877232,1199.0,1198.9,14.62724121]
[1672630752466,3.12877232,1199.0,1198.9,15.81803655]
[1672630752622,3.12877232,1199.0,1198.9,24.15900655]
[1672630753050,3.12877232,1199.0,1198.9,16.23568854]
[1672630754515,3.75730609,1199.0,1198.9,7.89471854]
[1672630754931,12.04373126,1199.1,1198.9,4.21486114]
[1672630755195,3.0,1199.0,1198.9,4.14886114]
[1672630756054,3.0,1199.0,1198.8,2.12964103]
[1672630756055,6.75261402,1199.0,1198.8,2.12964103]
[1672630756194,3.75270647,1198.9,1198.8,9.21250217]
[1672630756400,3.75270647,1198.9,1198.8,9.27850217]
[1672630760614,3.75270647,1198.9,1198.8,9.53088599]
[1672630760867,3.75270647,1198.9,1198.8,12.54820366]
[1672630761034,3.81870647,1199.0,1198.8,12.54820366]
[1672630761271,3.75270647,1198.9,1198.8,5.38202485]
[1672630761457,3.75270647,1198.9,1198.8,5.12964103]
[1672630761703,3.81870647,1199.0,1198.8,5.12964103]
[1672630762046,3.12611155,1198.9,1198.8,5.12964103]
[1672630762181,3.12610378,1198.9,1198.8,5.12964103]
[1672630763454,3.12610378,1198.9,1198.8,5.07964103]
[1672630766814,3.75270647,1198.9,1198.8,5.07964103]
[1672630767021,3.81870647,1199.0,1198.8,5.07964103]
[1672630767229,3.75270647,1199.0,1198.8,5.07964103]
[1672630767442,3.75270647,1199.0,1198.8,5.33202485]
[1672630767682,3.12584767,1198.9,1198.8,5.33202485]
[1672630771156,3.81870647,1199.0,1198.8,5.33202485]
[1672630771367,3.75270647,1199.0,1198.8,5.33202485]
[1672630772154,3.75270647,1198.9,1198.8,5.33202485]
[1672630775300,3.81870647,1199.0,1198.8,5.33202485]
[1672630775550,3.75270647,1199.0,1198.8,5.33202485]
[1672630775815,3.75270647,1198.9,1198.8,5.33202485]
[1672630775978,3.75270647,1198.9,1198.8,6.56103041]
[1672630776184,3.81870647,1199.0,1198.8,6.56103041]
[1672630776432,3.07569161,1198.9,1198.8,5.33202485]
[1672630776686,3.81870647,1199.0,1198.8,5.33202485]
[1672630776967,3.75270647,1199.0,1198.8,5.33202485]
[1672630777135,3.75270647,1198.9,1198.8,5.33202485]
[1672630777342,3.81870647,1199.0,1198.8,5.33202485]
[1672630777668,3.75270647,1198.9,1198.8,5.33202485]
[1672630783301,3.75270647,1198.9,1198.8,6.56103041]
[1672630783620,3.81870647,1199.0,1198.8,6.56103041]
[1672630783784,3.75270647,1199.0,1198.8,6.56103041]
[1672630784978,3.75270647,1198.9,1198.8,6.56103041]
[1672630785130,8.20333773,1199.0,1198.8,6.56103041]
[1672630785340,3.75670647,1199.0,1198.8,5.33202485]
[1672630785551,3.75270647,1199.0,1198.8,5.33202485]
[1672630786182,3.12536324,1198.9,1198.8,5.33202485]
[1672630786664,3.81870647,1199.0,1198.8,5.33202485]
[1672630786829,3.12536364,1198.9,1198.8,6.99288176]
[1672630787027,3.12536364,1198.9,1198.8,19.4834129]
[1672630787238,5.62549554,1198.9,1198.8,31.6193694]
[1672630787446,5.62949554,1198.9,1198.8,39.9610394]
[1672630788451,5.62949554,1198.9,1198.8,31.6193694]
[1672630789231,5.62949554,1198.9,1198.8,27.8250829]
[1672630789793,5.62949554,1198.9,1198.8,36.1667529]
[1672630789979,5.62949554,1198.9,1198.8,27.8250829]
[1672630790184,3.12936364,1198.9,1198.8,27.8250829]
[1672630790410,3.12536364,1198.9,1198.8,23.2776994]
[1672630791018,3.12536364,1198.9,1198.8,19.4834129]
[1672630791898,3.12536364,1198.9,1198.8,11.1417429]
[1672630792124,3.81870647,1199.0,1198.8,11.1417429]
[1672630792292,4.38463126,1199.0,1198.9,4.14886114]
[1672630792854,4.38463126,1199.0,1198.9,7.40124496]
[1672630793068,4.38463126,1199.0,1198.9,7.46724496]
[1672630793979,4.38463126,1199.0,1198.9,7.88984235]
[1672630794435,4.38463126,1199.0,1198.9,3.74098121]
[1672630794594,4.38463126,1199.0,1198.9,3.67498121]
[1672630796951,4.38463126,1199.0,1198.9,3.67235637]
[1672630802537,14.14073126,1199.1,1198.9,3.67235637]
[1672630802845,14.07873126,1199.1,1198.9,3.67235637]
[1672630804737,4.38463126,1199.0,1198.9,3.67235637]
[1672630808356,3.75555857,1199.0,1198.9,4.79307045]
[1672630808566,3.75555857,1199.0,1198.9,13.13404045]
[1672630808828,3.75555857,1199.0,1198.9,4.85907045]
[1672630808983,3.75555857,1199.0,1198.9,4.79307045]
[1672630811191,3.75555857,1199.0,1198.9,8.94193159]
[1672630811450,3.75555857,1199.0,1198.9,9.00793159]
[1672630817880,3.75555857,1199.0,1198.9,17.34890159]
[1672630819226,3.75555857,1199.0,1198.9,9.00793159]
[1672630819396,3.75555857,1199.0,1198.9,9.00439998]
[1672630823056,3.75555857,1199.0,1198.9,13.76183405]
[1672630824089,3.75555857,1199.0,1198.9,22.10280405]
[1672630825896,3.1296059,1199.0,1198.9,45.33506055]
[1672630826065,4.45063126,1199.1,1199.0,3.0]
[1672630826274,3.75591471,1199.1,1199.0,19.72462427]
[1672630826461,4.50900392,1199.2,1199.0,20.04300809]
[1672630826691,4.44300392,1199.2,1199.1,11.89111821]
[1672630826903,9.44300392,1199.2,1199.1,11.95711821]
[1672630827105,4.99156097,1199.2,1199.1,11.95711821]
[1672630827341,0.05837266,1199.2,1199.1,7.21486114]
[1672630827674,4.98756097,1199.2,1199.1,7.21486114]
[1672630828054,0.05837266,1199.2,1199.1,7.21486114]
[1672630828666,4.98756097,1199.2,1199.1,7.21486114]
[1672630829672,9.98756097,1199.2,1199.1,7.21486114]
[1672630829980,9.99156097,1199.2,1199.1,7.21486114]
[1672630830507,5.06237266,1199.2,1199.1,7.21486114]
[1672630830677,9.99156097,1199.2,1199.1,7.21486114]
[1672630831541,5.06237266,1199.2,1199.1,7.21486114]
[1672630833083,9.99156097,1199.2,1199.1,3.066]
[1672630833310,9.99156097,1199.2,1199.1,6.0]
[1672630833507,9.99156097,1199.2,1199.1,3.066]
[1672630833865,9.99156097,1199.2,1199.1,3.0]
[1672630837144,4.99156097,1199.2,1199.1,3.0]
[1672630837442,4.98756097,1199.2,1199.1,3.0]
[1672630838164,9.98756097,1199.2,1199.1,3.0]
[1672630838373,9.99156097,1199.2,1199.1,3.0]
[1672630839601,5.06237266,1199.2,1199.1,3.0]
[1672630840043,9.99156097,1199.2,1199.1,3.0]
[1672630841715,9.99156097,1199.2,1199.0,3.31838382]
[1672630842086,4.38210576,1199.1,1199.0,7.40124496]
[1672630842224,4.38210576,1199.1,1199.0,7.46724496]
[1672630842429,4.38210576,1199.1,1199.0,10.1660656]
[1672630842680,4.92918831,1199.1,1199.0,7.46724496]
[1672630843064,4.38232432,1199.1,1199.0,7.46724496]
[1672630843594,4.38232432,1199.1,1199.0,7.46439255]
[1672630844253,4.38233652,1199.1,1199.0,7.46439255]
[1672630845307,4.38233652,1199.1,1199.0,9.32884295]
[1672630846154,4.38233652,1199.1,1199.0,9.33866371]
[1672630848496,4.38233652,1199.1,1199.0,7.47421331]
[1672630852535,4.38233652,1199.1,1199.0,7.46439255]
[1672630862512,4.38233652,1199.1,1199.0,9.45481528]
[1672630865341,4.38233652,1199.1,1199.0,17.79509528]
[1672630867019,4.38233652,1199.1,1199.0,11.55181528]
[1672630867210,4.38233652,1199.1,1199.0,23.51392571]
[1672630867420,5.05356097,1199.2,1199.0,23.51049909]
[1672630867421,4.50670918,1199.2,1199.0,23.51049909]
[1672630867632,4.44121657,1199.2,1199.1,7.14886114]
[1672630867848,5.05837266,1199.2,1199.1,7.21486114]
[1672630868090,5.06237266,1199.2,1199.1,7.21486114]
[1672630872377,9.99156097,1199.2,1199.1,7.21486114]
[1672630872553,5.06237266,1199.2,1199.1,7.21486114]
[1672630874116,9.99156097,1199.2,1199.1,7.21486114]
[1672630875956,5.06237266,1199.2,1199.1,7.21486114]
[1672630876106,9.99156097,1199.2,1199.1,7.21486114]
[1672630879631,4.99156097,1199.2,1199.1,7.21486114]
[1672630879803,4.98756097,1199.2,1199.1,7.21486114]
[1672630880207,4.98756097,1199.2,1199.1,3.066]
[1672630880421,4.98756097,1199.2,1199.0,5.30252752]
[1672630880422,9.98756097,1199.2,1199.0,5.30252752]
[1672630880678,4.38257298,1199.1,1199.0,9.45138866]
[1672630887625,4.38257298,1199.1,1199.0,9.44887389]
[1672630891320,10.13344564,1199.2,1199.0,9.44887389]
[1672630891478,10.07144564,1199.2,1199.0,9.44887389]
[1672630894718,3.75610168,1199.1,1199.0,9.44887389]
[1672630895091,3.75610168,1199.1,1199.0,13.06965318]
[1672630909644,3.75610168,1199.1,1199.0,12.82606316]
[1672630909849,3.75610168,1199.1,1199.0,13.07844698]
[1672630911480,3.75610168,1199.1,1199.0,13.07476126]
[1672630912451,3.12838446,1199.1,1199.0,43.98688776]
[1672630913413,3.12838446,1199.1,1199.0,35.64660776]
[1672630917173,3.12838446,1199.1,1199.0,31.85232126]
[1672630917377,3.12838446,1199.1,1199.0,35.64660776]
[1672630919160,3.12838446,1199.1,1199.0,31.85232126]
[1672630919373,3.12838446,1199.1,1199.0,35.64660776]
[1672630919642,3.12838446,1199.1,1199.0,31.85232126]
[1672630926342,3.75610168,1199.1,1199.0,15.17176126]
[1672630926616,3.75610168,1199.1,1199.0,11.55098197]
[1672630932526,3.88047434,1199.2,1199.0,11.55098197]
[1672630932733,4.44094564,1199.2,1199.1,7.14886114]
[1672630932933,4.44094564,1199.2,1199.1,10.21486114]
[1672630933403,4.44094564,1199.2,1199.1,7.21486114]
[1672630934107,0.05837266,1199.2,1199.1,7.21486114]
[1672630934319,4.44094564,1199.2,1199.1,7.21486114]
[1672630935307,4.44094564,1199.2,1199.1,7.46724496]
[1672630935684,4.44094564,1199.2,1199.1,7.4648354]
[1672630936875,9.44094564,1199.2,1199.1,7.4648354]
[1672630937078,9.44494564,1199.2,1199.1,7.4648354]
[1672630937288,11.43517437,1199.2,1199.1,3.066]
[1672630937503,11.43517437,1199.2,1199.0,5.05273701]
[1672630937661,4.38159627,1199.1,1199.0,9.20159815]
[1672630938408,10.94958233,1199.2,1199.0,9.20159815]
[1672630938614,10.88758233,1199.2,1199.0,9.20159815]
[1672630939179,4.38159627,1199.1,1199.0,9.20159815]
[1672630940187,10.94958233,1199.2,1199.0,9.20159815]
[1672630940408,10.88758233,1199.2,1199.0,9.20159815]
[1672630941303,3.75467906,1199.1,1199.0,9.20159815]
[1672630948640,4.50596893,1199.2,1199.0,9.20159815]
[1672630948829,4.43996893,1199.2,1199.0,9.20159815]
[1672630950195,3.75370169,1199.1,1199.0,9.20159815]
[1672630955610,3.75370169,1199.1,1199.0,9.45398197]
[1672630957049,3.75370169,1199.1,1199.0,9.4515139]
[1672630959585,4.38159627,1199.1,1199.0,5.30265276]
[1672630959916,4.38159627,1199.1,1199.0,5.05026894]
[1672630960143,5.32511199,1199.1,1199.0,5.05026894]
[1672630960298,5.32911199,1199.1,1199.0,2.05026894]
[1672630960528,5.32911199,1199.1,1199.0,1.98426894]
[1672630966434,4.38559627,1199.1,1199.0,1.98426894]
[1672630966595,4.38159627,1199.1,1199.0,1.98426894]
[1672630967442,9.38159627,1199.1,1199.0,1.98426894]
[1672630967653,9.38559627,1199.1,1199.0,1.98426894]
[1672630973510,4.38559627,1199.1,1199.0,1.98426894]
[1672630973824,4.38159627,1199.1,1199.0,1.98426894]
[1672630974414,9.38159627,1199.1,1199.0,1.98426894]
[1672630974639,9.38559627,1199.1,1199.0,1.98426894]
[1672630979473,4.38559627,1199.1,1199.0,1.98426894]
[1672630979674,4.38159627,1199.1,1199.0,1.98226821]
[1672630980678,5.13246893,1199.2,1199.0,1.98226821]
[1672630980848,5.07046893,1199.2,1199.0,1.98226821]
[1672630982354,4.38159627,1199.1,1199.0,1.98226821]
[1672630985711,9.38159627,1199.1,1199.0,1.98226821]
[1672630985876,9.38559627,1199.1,1199.0,1.98226821]
[1672630990983,9.3835205,1199.1,1199.0,4.98226821]
[1672630991714,4.3835205,1199.1,1199.0,1.98226821]
[1672630991867,4.3795205,1199.1,1199.0,4.98226821]
[1672630992072,4.3795205,1199.1,1199.0,1.98226821]
[1672630992704,9.3795205,1199.1,1199.0,1.98226821]
[1672630992918,9.3835205,1199.1,1199.0,1.98226821]
[1672630994590,5.004,1199.1,1199.0,1.98226821]
[1672630996093,9.3868556,1199.1,1199.0,1.98226821]
[1672630998698,4.3868556,1199.1,1199.0,1.98226821]
[1672630998910,4.3828556,1199.1,1199.0,1.98226821]
[1672630999672,9.3828556,1199.1,1199.0,1.98226821]
[1672630999878,5.004,1199.1,1199.0,1.98226821]
[1672631000068,9.38720569,1199.1,1199.0,1.98226821]
[1672631001643,5.004,1199.1,1199.0,1.98226821]
[1672631001852,9.38710624,1199.1,1199.0,1.98226821]
[1672631002691,4.38710624,1199.1,1199.0,1.98226821]
[1672631003032,4.38310624,1199.1,1199.0,1.98226821]
[1672631015736,4.38310624,1199.1,1199.0,4.97939188]
[1672631015879,4.38310624,1199.1,1199.0,7.97939188]
[1672631016253,4.38310624,1199.1,1199.0,8.04539188]
[1672631020304,4.38310624,1199.1,1199.0,5.04539188]
[1672631021295,4.38310624,1199.1,1199.0,8.04539188]
[1672631022265,4.5074789,1199.2,1199.0,13.87708854]
[1672631022468,4.5074789,1199.2,1199.1,6.0]
[1672631022469,4.4414789,1199.2,1199.1,6.0]
[1672631022628,9.4414789,1199.2,1199.1,6.066]
[1672631022835,4.4454789,1199.2,1199.1,6.066]
[1672631023170,4.4414789,1199.2,1199.1,6.066]
[1672631023340,4.44042027,1199.2,1199.1,6.066]
[1672631023814,9.44042027,1199.2,1199.1,7.92927437]
[1672631024008,9.44442027,1199.2,1199.1,4.92927437]
[1672631024216,9.44442027,1199.2,1199.1,4.86327437]
[1672631027296,9.44442027,1199.2,1199.1,7.86327437]
[1672631027497,9.44442027,1199.2,1199.1,7.92927437]
[1672631028752,9.44442027,1199.2,1199.1,4.92927437]
[1672631028951,9.44442027,1199.2,1199.1,4.86327437]
[1672631036067,4.44442027,1199.2,1199.1,4.86327437]
[1672631036281,4.44042027,1199.2,1199.1,4.86327437]
[1672631037067,9.44042027,1199.2,1199.1,4.86327437]
[1672631037281,5.06237266,1199.2,1199.1,5.11565819]
[1672631037438,5.06237266,1199.2,1199.1,5.18165819]
[1672631037648,9.44442027,1199.2,1199.1,5.18165819]
[1672631038118,5.06237266,1199.2,1199.1,8.18165819]
[1672631038433,9.44442027,1199.2,1199.1,8.18165819]
[1672631039326,5.06237266,1199.2,1199.1,8.17877802]
[1672631040124,9.44442027,1199.2,1199.1,5.17877802]
[1672631040940,8.81617622,1199.2,1199.1,5.17877802]
[1672631041349,5.06237266,1199.2,1199.1,5.17877802]
[1672631042031,8.81645356,1199.2,1199.1,5.17877802]
[1672631042355,9.44442027,1199.2,1199.1,5.17877802]
[1672631048441,4.44442027,1199.2,1199.1,9.07525534]
[1672631048665,9.44042027,1199.2,1199.1,9.07525534]
[1672631048877,9.44442027,1199.2,1199.1,9.07525534]
[1672631049096,5.06237266,1199.2,1199.1,9.07525534]
[1672631049892,9.44442027,1199.2,1199.1,9.07525534]
[1672631055461,4.44442027,1199.2,1199.1,9.07525534]
[1672631055672,9.44042027,1199.2,1199.1,9.07525534]
[1672631056022,9.44442027,1199.2,1199.1,9.07525534]
[1672631060631,9.4409987,1199.2,1199.1,9.07525534]
[1672631060849,9.4409987,1199.2,1199.1,4.9263942]
[1672631061065,9.4409987,1199.2,1199.1,4.8603942]
[1672631067032,4.4409987,1199.2,1199.1,4.8603942]
[1672631067243,4.9841394,1199.2,1199.1,4.86327437]
[1672631067453,9.9841394,1199.2,1199.1,4.86327437]
[1672631067697,9.9881394,1199.2,1199.1,4.86327437]
[1672631068105,9.9881394,1199.2,1199.1,1.86327437]
[1672631071234,9.44057819,1199.2,1199.1,1.86327437]
[1672631071445,5.05895109,1199.2,1199.1,1.86327437]
[1672631072024,9.44028431,1199.2,1199.1,1.86327437]
[1672631072185,5.05895109,1199.2,1199.1,1.86327437]
[1672631073756,9.4401374,1199.2,1199.1,1.86327437]
[1672631075769,4.4401374,1199.2,1199.1,1.86327437]
[1672631075982,4.4361374,1199.2,1199.1,1.86327437]
[1672631076628,9.4361374,1199.2,1199.1,1.86327437]
[1672631076859,9.4401374,1199.2,1199.1,1.86327437]
[1672631078643,5.05895109,1199.2,1199.1,1.86327437]
[1672631079383,9.9881394,1199.2,1199.1,1.86327437]
[1672631080272,5.05895109,1199.2,1199.1,1.86327437]
[1672631081452,9.9881394,1199.2,1199.1,1.86327437]
[1672631082054,5.05895109,1199.2,1199.1,1.86327437]
[1672631082521,9.439778,1199.2,1199.1,1.86327437]
[1672631082756,4.439778,1199.2,1199.1,1.86327437]
[1672631082955,4.435778,1199.2,1199.1,1.86327437]
[1672631083784,9.435778,1199.2,1199.1,1.86327437]
[1672631084006,9.439778,1199.2,1199.1,1.86327437]
[1672631084933,9.439778,1199.2,1199.1,1.86112595]
[1672631089693,4.439778,1199.2,1199.1,1.86112595]
[1672631089881,4.435778,1199.2,1199.1,1.86112595]
[1672631090787,9.435778,1199.2,1199.1,1.86112595]
[1672631091100,9.439778,1199.2,1199.1,1.86112595]
[1672631093816,5.05895109,1199.2,1199.1,1.86112595]
[1672631096753,0.05895109,1199.2,1199.1,1.86112595]
[1672631096936,0.05495109,1199.2,1199.1,1.86112595]
[1672631097801,9.9841394,1199.2,1199.1,1.86112595]
[1672631097961,9.9881394,1199.2,1199.1,1.86112595]
[1672631099268,5.05895109,1199.2,1199.1,1.86112595]
[1672631099631,9.9881394,1199.2,1199.1,1.86112595]
[1672631101693,5.05895109,1199.2,1199.1,1.86112595]
[1672631103104,5.06095109,1199.2,1199.1,1.86112595]
[1672631103315,9.9881394,1199.2,1199.1,1.86112595]
[1672631103525,5.05895109,1199.2,1199.1,1.86112595]
[1672631103764,0.05895109,1199.2,1199.1,1.86112595]
[1672631103975,4.9841394,1199.2,1199.1,1.86112595]
[1672631104737,9.9841394,1199.2,1199.1,1.86112595]
[1672631104945,9.9881394,1199.2,1199.1,1.86112595]
[1672631106167,5.05895109,1199.2,1199.1,1.86112595]
[1672631106837,9.9881394,1199.2,1199.1,1.86112595]
[1672631107050,9.44293092,1199.2,1199.1,1.86112595]
[1672631107435,5.05895109,1199.2,1199.1,1.85803806]
[1672631108043,9.44275463,1199.2,1199.1,1.85803806]
[1672631108951,5.05895109,1199.2,1199.1,1.85803806]
[1672631109635,9.4427649,1199.2,1199.1,1.85803806]
[1672631110691,0.05895109,1199.2,1199.1,1.85803806]
[1672631110943,0.05495109,1199.2,1199.1,1.85803806]
[1672631111536,4.9841394,1199.2,1199.1,1.85803806]
[1672631111883,9.9841394,1199.2,1199.1,1.85803806]
[1672631112099,9.44245949,1199.2,1199.1,1.85803806]
[1672631112900,9.9881394,1199.2,1199.1,1.85803806]
[1672631114676,5.05895109,1199.2,1199.1,1.85803806]
[1672631115407,9.9881394,1199.2,1199.1,1.85803806]
[1672631115617,9.44251172,1199.2,1199.1,6.0068992]
[1672631115830,9.44251172,1199.2,1199.1,11.16796285]
[1672631116357,9.9881394,1199.2,1199.1,9.0728992]
[1672631118478,4.9881394,1199.2,1199.1,9.0728992]
[1672631118666,9.9841394,1199.2,1199.1,9.0728992]
[1672631118876,9.9881394,1199.2,1199.1,9.0728992]
[1672631119087,9.44206922,1199.2,1199.1,9.0728992]
[1672631120824,5.05895109,1199.2,1199.1,4.92403806]
[1672631121032,5.05895109,1199.2,1199.1,4.85803806]
[1672631121194,9.9881394,1199.2,1199.1,4.85803806]
[1672631121404,5.05895109,1199.2,1199.1,4.85803806]
[1672631121824,9.9881394,1199.2,1199.1,4.85803806]
[1672631124942,4.9881394,1199.2,1199.1,4.85803806]
[1672631125106,4.9841394,1199.2,1199.1,4.85803806]
[1672631125721,9.9841394,1199.2,1199.1,4.85803806]
[1672631125934,9.9881394,1199.2,1199.1,4.85803806]
[1672631127035,10.99315334,1199.2,1199.1,4.85803806]
[1672631127665,10.99315334,1199.2,1199.1,1.85803806]
[1672631127666,13.07415334,1199.2,1199.1,1.85803806]
[1672631127822,6.69036503,1199.2,1199.1,1.85803806]
[1672631128038,17.10112994,1199.2,1199.1,1.85803806]
[1672631130257,17.10112994,1199.2,1199.1,1.85540921]
[1672631135672,17.10312994,1199.2,1199.1,1.85540921]
[1672631135883,10.88436503,1199.2,1199.1,1.85540921]
[1672631136403,17.10312994,1199.2,1199.1,1.85540921]
[1672631137725,10.88436503,1199.2,1199.1,1.85540921]
[1672631138894,17.10312994,1199.2,1199.1,1.85540921]
[1672631139460,12.10312994,1199.2,1199.1,1.85540921]
[1672631139921,40.88436503,1199.2,1199.1,1.85540921]
[1672631140136,45.88436503,1199.2,1199.1,1.85540921]
[1672631141942,52.10312994,1199.2,1199.1,1.85540921]
[1672631142129,45.88436503,1199.2,1199.1,1.85540921]
[1672631142335,51.04978355,1199.2,1199.1,1.85540921]
[1672631143294,50.94978355,1199.2,1199.1,1.85540921]
[1672631143504,50.95378355,1199.2,1199.1,1.85540921]
[1672631143938,45.78836503,1199.2,1199.1,1.85540921]
[1672631144154,50.95354893,1199.2,1199.1,1.85540921]
[1672631144914,45.78836503,1199.2,1199.1,1.85540921]
[1672631145449,50.95353377,1199.2,1199.1,1.85540921]
[1672631145619,45.68836503,1199.2,1199.1,1.85540921]
[1672631145815,50.85323724,1199.2,1199.1,1.85540921]
[1672631146031,45.85323724,1199.2,1199.1,1.85540921]
[1672631146442,45.79490338,1199.2,1199.1,1.85540921]
[1672631147184,45.63003117,1199.2,1199.1,1.85540921]
[1672631147649,43.43303117,1199.2,1199.1,1.85540921]
[1672631149809,49.65179608,1199.2,1199.1,1.85540921]
[1672631151270,56.12765722,1199.2,1199.1,1.85540921]
[1672631154355,12.78479608,1199.2,1199.1,1.85540921]
[1672631154588,11.50154688,1199.2,1199.1,1.85540921]
[1672631154968,10.87514688,1199.2,1199.1,1.85540921]
[1672631155175,10.16951571,1199.2,1199.1,1.85540921]
[1672631159784,5.004,1199.2,1199.1,1.85540921]
[1672631160460,11.22276491,1199.2,1199.1,1.85540921]
[1672631160970,10.17334568,1199.2,1199.1,1.85540921]
[1672631165241,10.17534568,1199.2,1199.1,1.85540921]
[1672631165473,10.17334568,1199.2,1199.1,1.85540921]
[1672631168549,10.17334568,1199.2,1199.1,0.85540921]
[1672631169452,5.17334568,1199.2,1199.1,0.85540921]
[1672631170383,10.17334568,1199.2,1199.1,0.85540921]
[1672631181170,5.17334568,1199.2,1199.1,0.85540921]
[1672631182217,10.17334568,1199.2,1199.1,0.85540921]
[1672631188391,5.17334568,1199.2,1199.1,0.85540921]
[1672631189292,10.17334568,1199.2,1199.1,0.85540921]
[1672631189954,10.17334568,1199.2,1199.1,0.85186257]
[1672631190922,5.004,1199.2,1199.1,0.85186257]
[1672631191956,11.22276491,1199.2,1199.1,0.85186257]
[1672631193171,5.004,1199.2,1199.1,0.85186257]
[1672631193911,11.22276491,1199.2,1199.1,0.85186257]
[1672631195216,6.22276491,1199.2,1199.1,0.85186257]
[1672631196285,11.22276491,1199.2,1199.1,0.85186257]
[1672631200362,5.004,1199.2,1199.1,0.85186257]
[1672631200892,10.18118334,1199.2,1199.1,0.85186257]
[1672631201104,10.18118334,1199.2,1199.1,3.85186257]
[1672631201553,5.004,1199.2,1199.1,3.85186257]
[1672631201935,10.18113587,1199.2,1199.1,3.85186257]
[1672631203295,5.004,1199.2,1199.1,10.80052003]
[1672631203509,9.38638999,1199.2,1199.1,11.11890385]
[1672631203768,10.18113587,1199.2,1199.1,11.11890385]
[1672631204034,9.3862052,1199.2,1199.1,11.11890385]
[1672631204782,8.75818537,1199.2,1199.1,15.26776499]
[1672631205157,3.75818537,1199.2,1199.1,15.26776499]
[1672631205286,3.75418537,1199.2,1199.1,15.26776499]
[1672631205766,3.75418537,1199.2,1199.1,16.23156646]
[1672631206583,3.12627925,1199.2,1199.1,35.88416898]
[1672631206792,5.62720119,1199.2,1199.1,44.22374898]
[1672631206994,5.63120119,1199.2,1199.1,44.45374898]
[1672631207439,4.38051012,1199.2,1199.1,44.45374898]
[1672631207652,4.37651012,1199.2,1199.1,44.45374898]
[1672631207896,4.3765377,1199.2,1199.1,44.45374898]
[1672631208109,1.87561576,1199.2,1199.1,44.45374898]